[Event "Early-Titled-Tuesday-Blitz-October-03-2023"]
[Site "Chess.com"]
[Date "2023.10.03"]
[Round "8"]
[White "Markov_Mikhail"]
[Black "K_A_S_T_O_R"]
[Result "1-0"]
[WhiteElo "2733"]
[BlackElo "2879"]
[TimeControl "180+1"]
[EndTime "9:27:00 PDT"]
[Termination "Markov_Mikhail won by resignation"]

1. c4 {[%clk 0:03:00.9]} 1... c5 {[%clk 0:02:43.1]} 2. Nf3 {[%clk 0:03:00.1]}
2... Nf6 {[%clk 0:02:38.3]} 3. g3 {[%clk 0:03:00.3]} 3... b6 {[%clk 0:02:38.4]}
4. Bg2 {[%clk 0:03:00]} 4... Bb7 {[%clk 0:02:39.1]} 5. O-O {[%clk 0:03:00.6]}
5... e6 {[%clk 0:02:39.6]} 6. Nc3 {[%clk 0:03:01.2]} 6... a6 {[%clk 0:02:39.9]}
7. d4 {[%clk 0:03:00.8]} 7... cxd4 {[%clk 0:02:40.3]} 8. Qxd4 {[%clk 0:03:01.7]}
8... d6 {[%clk 0:02:40.9]} 9. Rd1 {[%clk 0:03:02.1]} 9... Nbd7 {[%clk
0:02:41.4]} 10. Bg5 {[%clk 0:03:02.7]} 10... Be7 {[%clk 0:02:41.7]} 11. Qd2
{[%clk 0:03:03.4]} 11... Rc8 {[%clk 0:02:41.8]} 12. Bf4 {[%clk 0:03:03.9]} 12...
e5 {[%clk 0:02:29.5]} 13. Bg5 {[%clk 0:03:03.5]} 13... Bxf3 {[%clk 0:02:25]} 14.
Bxf3 {[%clk 0:03:01.2]} 14... Rxc4 {[%clk 0:02:25.3]} 15. Qd3 {[%clk 0:02:43.1]}
15... b5 {[%clk 0:02:21.4]} 16. a4 {[%clk 0:02:43.4]} 16... e4 {[%clk
0:01:57.9]} 17. Nxe4 {[%clk 0:02:33.5]} 17... Nxe4 {[%clk 0:01:57.3]} 18. Bxe7
{[%clk 0:02:32.8]} 18... Qxe7 {[%clk 0:01:52.3]} 19. axb5 {[%clk 0:02:33.2]}
19... d5 {[%clk 0:01:31.8]} 20. Qxd5 {[%clk 0:02:27.2]} 20... Nb6 {[%clk
0:01:29.4]} 21. Bxe4 {[%clk 0:01:23]} 21... Rxe4 {[%clk 0:01:22.6]} 22. Qc6+
{[%clk 0:01:20.3]} 22... Nd7 {[%clk 0:01:11.1]} 23. Rxd7 {[%clk 0:01:17.2]}
23... Qxd7 {[%clk 0:01:10.2]} 24. Qxe4+ {[%clk 0:01:17.8]} 1-0

[Event "Early-Titled-Tuesday-Blitz-October-03-2023"]
[Site "Chess.com"]
[Date "2023.10.03"]
[Round "8"]
[White "Marcin"]
[Black "ajedrezhoy"]
[Result "1-0"]
[WhiteElo "2505"]
[BlackElo "2366"]
[TimeControl "180+1"]
[EndTime "9:27:08 PDT"]
[Termination "Marcin won by resignation"]

1. Nf3 {[%clk 0:03:00.9]} 1... Nf6 {[%clk 0:02:45.2]} 2. c4 {[%clk 0:03:00.8]}
2... b6 {[%clk 0:02:42.3]} 3. g3 {[%clk 0:03:00.9]} 3... c5 {[%clk 0:02:39.6]}
4. Bg2 {[%clk 0:03:01.3]} 4... Bb7 {[%clk 0:02:38.2]} 5. O-O {[%clk 0:03:01.7]}
5... g6 {[%clk 0:02:38.1]} 6. b3 {[%clk 0:03:01.4]} 6... Bg7 {[%clk 0:02:38]} 7.
Bb2 {[%clk 0:03:02.1]} 7... O-O {[%clk 0:02:38.1]} 8. d4 {[%clk 0:03:00.9]} 8...
cxd4 {[%clk 0:02:36.8]} 9. Qxd4 {[%clk 0:03:01.2]} 9... d6 {[%clk 0:02:35.1]}
10. Nc3 {[%clk 0:03:01]} 10... Nbd7 {[%clk 0:02:34.9]} 11. Rad1 {[%clk
0:03:00.4]} 11... a6 {[%clk 0:02:30.8]} 12. Qd3 {[%clk 0:03:00.2]} 12... Nc5
{[%clk 0:02:18.3]} 13. Qb1 {[%clk 0:02:50.6]} 13... Nfe4 {[%clk 0:02:06.5]} 14.
Nxe4 {[%clk 0:02:47.5]} 14... Bxe4 {[%clk 0:02:06.1]} 15. Qa1 {[%clk 0:02:47.3]}
15... Bxb2 {[%clk 0:02:05.6]} 16. Qxb2 {[%clk 0:02:48.2]} 16... b5 {[%clk
0:02:03.7]} 17. Rd4 {[%clk 0:02:47.9]} 17... bxc4 {[%clk 0:02:00.5]} 18. Rxc4
{[%clk 0:02:47.2]} 18... a5 {[%clk 0:01:51.3]} 19. Rd1 {[%clk 0:02:38.3]} 19...
Qb6 {[%clk 0:01:40.7]} 20. Rdd4 {[%clk 0:02:37.9]} 20... Bc6 {[%clk 0:01:34.6]}
21. Rh4 {[%clk 0:02:38]} 21... a4 {[%clk 0:01:13]} 22. Rxh7 {[%clk 0:02:37.6]}
22... e5 {[%clk 0:00:53.8]} 23. Rch4 {[%clk 0:02:33]} 23... axb3 {[%clk
0:00:51.4]} 24. Qd2 {[%clk 0:02:05.8]} 24... Ne4 {[%clk 0:00:43.7]} 25. Qh6
{[%clk 0:01:55.8]} 25... Qxf2+ {[%clk 0:00:41.9]} 26. Kh1 {[%clk 0:01:56.1]} 1-0

[Event "Early-Titled-Tuesday-Blitz-October-03-2023"]
[Site "Chess.com"]
[Date "2023.10.03"]
[Round "8"]
[White "jk13"]
[Black "ploxoi"]
[Result "1-0"]
[WhiteElo "2633"]
[BlackElo "2464"]
[TimeControl "180+1"]
[EndTime "9:27:22 PDT"]
[Termination "jk13 won by resignation"]

1. e4 {[%clk 0:03:00.9]} 1... c5 {[%clk 0:02:58.9]} 2. c3 {[%clk 0:03:01.5]}
2... d5 {[%clk 0:02:58.7]} 3. exd5 {[%clk 0:03:02]} 3... Qxd5 {[%clk 0:02:59.6]}
4. d4 {[%clk 0:03:02.5]} 4... Nf6 {[%clk 0:03:00.3]} 5. Nf3 {[%clk 0:03:03.2]}
5... e6 {[%clk 0:03:01]} 6. Na3 {[%clk 0:03:03.7]} 6... Nc6 {[%clk 0:03:00.9]}
7. Be3 {[%clk 0:03:03.2]} 7... cxd4 {[%clk 0:02:59]} 8. Nb5 {[%clk 0:03:03.9]}
8... Qd8 {[%clk 0:02:59.3]} 9. Nbxd4 {[%clk 0:03:04.6]} 9... Nxd4 {[%clk
0:02:58.6]} 10. Bxd4 {[%clk 0:03:05.5]} 10... a6 {[%clk 0:02:57.9]} 11. Bd3
{[%clk 0:03:05.4]} 11... Be7 {[%clk 0:02:58.2]} 12. O-O {[%clk 0:03:05.4]} 12...
O-O {[%clk 0:02:58.8]} 13. Ne5 {[%clk 0:03:05.8]} 13... Qc7 {[%clk 0:02:56.7]}
14. Qf3 {[%clk 0:03:04]} 14... Bc5 {[%clk 0:02:48.4]} 15. Bxc5 {[%clk
0:02:58.2]} 15... Qxc5 {[%clk 0:02:49.3]} 16. Rfe1 {[%clk 0:02:58.2]} 16... Rd8
{[%clk 0:02:48.4]} 17. Rad1 {[%clk 0:02:56.9]} 17... Bd7 {[%clk 0:02:41.9]} 18.
Qxb7 {[%clk 0:02:09.3]} 18... Rab8 {[%clk 0:02:41]} 19. Nxd7 {[%clk 0:02:09.6]}
19... Nxd7 {[%clk 0:02:36.1]} 20. Qe4 {[%clk 0:02:06.9]} 20... Nf6 {[%clk
0:02:34.9]} 21. Qe2 {[%clk 0:02:07.5]} 21... a5 {[%clk 0:02:33.9]} 22. Bc4
{[%clk 0:02:00.8]} 22... Rdc8 {[%clk 0:02:32.7]} 23. b3 {[%clk 0:02:00.2]} 23...
h5 {[%clk 0:02:20.5]} 24. h3 {[%clk 0:01:58.6]} 24... Qa3 {[%clk 0:02:04.5]} 25.
Rd2 {[%clk 0:01:51.4]} 25... Qc5 {[%clk 0:02:00.1]} 26. a4 {[%clk 0:01:50.8]}
26... Qg5 {[%clk 0:01:56.2]} 27. Qe3 {[%clk 0:01:47.6]} 27... Qh4 {[%clk
0:01:49.4]} 28. Rd4 {[%clk 0:01:45.5]} 28... Ng4 {[%clk 0:01:23.7]} 29. hxg4
{[%clk 0:01:46.4]} 29... hxg4 {[%clk 0:01:24.2]} 30. Qe4 {[%clk 0:01:39.8]}
30... Qf6 {[%clk 0:01:11.2]} 31. Qxg4 {[%clk 0:01:37.3]} 31... Rc5 {[%clk
0:01:12.1]} 32. Qf4 {[%clk 0:01:32.5]} 1-0

[Event "Early-Titled-Tuesday-Blitz-October-03-2023"]
[Site "Chess.com"]
[Date "2023.10.03"]
[Round "8"]
[White "pasteta13"]
[Black "hellokostya"]
[Result "0-1"]
[WhiteElo "2429"]
[BlackElo "2554"]
[TimeControl "180+1"]
[EndTime "9:27:30 PDT"]
[Termination "hellokostya won by resignation"]

1. e4 {[%clk 0:02:56.5]} 1... c5 {[%clk 0:02:59.1]} 2. Ne2 {[%clk 0:02:56.7]}
2... Nc6 {[%clk 0:02:58.9]} 3. g3 {[%clk 0:02:57.3]} 3... e6 {[%clk 0:02:58.9]}
4. Bg2 {[%clk 0:02:57.8]} 4... Nf6 {[%clk 0:02:59.6]} 5. c3 {[%clk 0:02:57.3]}
5... d5 {[%clk 0:02:56.8]} 6. exd5 {[%clk 0:02:58.2]} 6... Nxd5 {[%clk
0:02:52.1]} 7. d4 {[%clk 0:02:58.8]} 7... Be7 {[%clk 0:02:50.3]} 8. O-O {[%clk
0:02:55.9]} 8... O-O {[%clk 0:02:50.2]} 9. c4 {[%clk 0:02:47.5]} 9... Nf6 {[%clk
0:02:46.7]} 10. d5 {[%clk 0:02:45.4]} 10... exd5 {[%clk 0:02:47.6]} 11. cxd5
{[%clk 0:02:45.9]} 11... Ne5 {[%clk 0:02:43.5]} 12. Bf4 {[%clk 0:02:32.4]} 12...
Bd6 {[%clk 0:02:42.1]} 13. Nbc3 {[%clk 0:02:32.3]} 13... Re8 {[%clk 0:02:36]}
14. Nb5 {[%clk 0:02:27.8]} 14... Bg4 {[%clk 0:02:31.3]} 15. Nxd6 {[%clk
0:02:21.3]} 15... Qxd6 {[%clk 0:02:32.2]} 16. h3 {[%clk 0:02:21.2]} 16... Bf5
{[%clk 0:02:23.1]} 17. Nc3 {[%clk 0:02:09.2]} 17... a6 {[%clk 0:02:21.5]} 18. a4
{[%clk 0:01:52.1]} 18... Nfd7 {[%clk 0:02:21.3]} 19. g4 {[%clk 0:01:15.2]} 19...
Bg6 {[%clk 0:02:18.4]} 20. Ne4 {[%clk 0:01:15.4]} 20... Bxe4 {[%clk 0:02:13.6]}
21. Bxe4 {[%clk 0:01:14.9]} 21... Qf6 {[%clk 0:02:14.3]} 22. Bg3 {[%clk
0:00:43.9]} 22... Rad8 {[%clk 0:02:02.8]} 23. a5 {[%clk 0:00:35]} 23... h6
{[%clk 0:01:58.8]} 24. b3 {[%clk 0:00:29.6]} 24... Ng6 {[%clk 0:01:54.1]} 25.
Qf3 {[%clk 0:00:22.4]} 25... Qd4 {[%clk 0:01:41.5]} 26. Rfd1 {[%clk 0:00:19.5]}
26... Qxe4 {[%clk 0:01:40.1]} 0-1

[Event "Early-Titled-Tuesday-Blitz-October-03-2023"]
[Site "Chess.com"]
[Date "2023.10.03"]
[Round "8"]
[White "MaxLeto"]
[Black "Nekoo04"]
[Result "1-0"]
[WhiteElo "2484"]
[BlackElo "2308"]
[TimeControl "180+1"]
[EndTime "9:27:30 PDT"]
[Termination "MaxLeto won by resignation"]

1. g4 {[%clk 0:02:59.1]} 1... f6 {[%clk 0:02:56.1]} 2. Bg2 {[%clk 0:02:57.9]}
2... Kf7 {[%clk 0:02:56.7]} 3. d4 {[%clk 0:02:57.4]} 3... e6 {[%clk 0:02:56.8]}
4. c4 {[%clk 0:02:57.4]} 4... d5 {[%clk 0:02:55.8]} 5. Nc3 {[%clk 0:02:58]} 5...
c6 {[%clk 0:02:55.9]} 6. e4 {[%clk 0:02:56.8]} 6... dxc4 {[%clk 0:02:52.2]} 7.
Nge2 {[%clk 0:02:56.8]} 7... e5 {[%clk 0:02:42]} 8. h3 {[%clk 0:02:51.2]} 8...
Na6 {[%clk 0:02:39.4]} 9. a3 {[%clk 0:02:49.3]} 9... exd4 {[%clk 0:02:36.2]} 10.
Nxd4 {[%clk 0:02:48.5]} 10... Nc5 {[%clk 0:02:36.4]} 11. O-O {[%clk 0:02:44.9]}
11... Nd3 {[%clk 0:02:34.6]} 12. Nf5 {[%clk 0:02:44.9]} 12... Bc5 {[%clk
0:02:24.8]} 13. Be3 {[%clk 0:02:30.5]} 13... Bxf5 {[%clk 0:02:13.9]} 14. Bxc5
{[%clk 0:02:13.5]} 14... Nxc5 {[%clk 0:02:14.8]} 15. exf5 {[%clk 0:02:14]} 15...
Qxd1 {[%clk 0:02:12.4]} 16. Raxd1 {[%clk 0:02:14.9]} 16... Ne7 {[%clk
0:02:08.8]} 17. Rd4 {[%clk 0:02:13.6]} 17... b5 {[%clk 0:01:45.8]} 18. Rfd1
{[%clk 0:02:03.3]} 18... Nd3 {[%clk 0:01:43.3]} 19. b3 {[%clk 0:01:56.8]} 19...
Rad8 {[%clk 0:01:42.5]} 20. Rxd8 {[%clk 0:01:46.9]} 20... Rxd8 {[%clk
0:01:43.4]} 21. bxc4 {[%clk 0:01:46.3]} 21... bxc4 {[%clk 0:01:42.6]} 22. Be4
{[%clk 0:01:25.7]} 22... Rd4 {[%clk 0:01:34.2]} 23. f3 {[%clk 0:01:20.4]} 23...
h5 {[%clk 0:01:17]} 24. Ne2 {[%clk 0:01:18.7]} 24... Nf4 {[%clk 0:01:16]} 25.
Nxd4 {[%clk 0:01:13.3]} 25... Nxh3+ {[%clk 0:01:09.6]} 26. Kg2 {[%clk
0:01:09.8]} 26... Nf4+ {[%clk 0:01:09.2]} 27. Kg3 {[%clk 0:01:09.7]} 27... Ned5
{[%clk 0:01:02.4]} 28. Nxc6 {[%clk 0:01:05.6]} 28... Ne2+ {[%clk 0:01:01.1]} 29.
Kf2 {[%clk 0:01:05.5]} 29... Ndc3 {[%clk 0:01:01.2]} 30. Rd7+ {[%clk 0:01:04.5]}
1-0

[Event "Early-Titled-Tuesday-Blitz-October-03-2023"]
[Site "Chess.com"]
[Date "2023.10.03"]
[Round "8"]
[White "ozates"]
[Black "Balla_Tamas"]
[Result "1-0"]
[WhiteElo "2626"]
[BlackElo "2452"]
[TimeControl "180+1"]
[EndTime "9:27:38 PDT"]
[Termination "ozates won by resignation"]

1. e4 {[%clk 0:03:00.9]} 1... c5 {[%clk 0:02:59.9]} 2. Nf3 {[%clk 0:03:01.2]}
2... Nc6 {[%clk 0:02:59.5]} 3. Bb5 {[%clk 0:03:01.2]} 3... Nf6 {[%clk
0:02:59.5]} 4. Nc3 {[%clk 0:02:59.6]} 4... Nd4 {[%clk 0:02:59.1]} 5. e5 {[%clk
0:02:53.1]} 5... Nxb5 {[%clk 0:02:57.9]} 6. Nxb5 {[%clk 0:02:51.8]} 6... Nd5
{[%clk 0:02:56.7]} 7. Ng5 {[%clk 0:02:47.8]} 7... f6 {[%clk 0:02:57]} 8. Qh5+
{[%clk 0:02:18.9]} 8... g6 {[%clk 0:02:55.9]} 9. Qf3 {[%clk 0:02:19.6]} 9...
fxg5 {[%clk 0:02:28.2]} 10. Qxd5 {[%clk 0:02:18.8]} 10... a6 {[%clk 0:02:28.8]}
11. Nc3 {[%clk 0:02:14.6]} 11... Bg7 {[%clk 0:02:27.9]} 12. Qxc5 {[%clk
0:02:09.5]} 12... O-O {[%clk 0:02:11]} 13. d4 {[%clk 0:02:09]} 13... d6 {[%clk
0:02:09.6]} 14. Qc4+ {[%clk 0:02:07.3]} 14... Kh8 {[%clk 0:02:08.7]} 15. Bxg5
{[%clk 0:02:05.9]} 15... dxe5 {[%clk 0:02:07.7]} 16. dxe5 {[%clk 0:02:04.6]}
16... Qa5 {[%clk 0:01:42.7]} 17. O-O {[%clk 0:01:56.3]} 17... Qxe5 {[%clk
0:01:40.6]} 18. Bh4 {[%clk 0:01:55.6]} 18... Be6 {[%clk 0:01:31.5]} 19. Qb4
{[%clk 0:01:52]} 19... Rf4 {[%clk 0:01:16]} 20. Qxb7 {[%clk 0:01:47.6]} 20...
Rb8 {[%clk 0:01:15.2]} 21. Qxe7 {[%clk 0:01:45.6]} 21... Rbf8 {[%clk 0:00:29.9]}
22. Bg3 {[%clk 0:01:42.7]} 22... R8f6 {[%clk 0:00:07.6]} 23. Rae1 {[%clk
0:01:37]} 1-0

[Event "Early-Titled-Tuesday-Blitz-October-03-2023"]
[Site "Chess.com"]
[Date "2023.10.03"]
[Round "8"]
[White "LaPiToB"]
[Black "MidnightFox"]
[Result "0-1"]
[WhiteElo "2291"]
[BlackElo "2481"]
[TimeControl "180+1"]
[EndTime "9:27:54 PDT"]
[Termination "MidnightFox won by resignation"]

1. d4 {[%clk 0:03:00.9]} 1... Nf6 {[%clk 0:02:58.8]} 2. c4 {[%clk 0:02:58]} 2...
e5 {[%clk 0:02:59.2]} 3. dxe5 {[%clk 0:02:50]} 3... Ne4 {[%clk 0:02:57.7]} 4.
Nf3 {[%clk 0:02:44.5]} 4... Bb4+ {[%clk 0:02:54.9]} 5. Nbd2 {[%clk 0:02:39.8]}
5... b6 {[%clk 0:02:47.9]} 6. a3 {[%clk 0:02:38.2]} 6... Bxd2+ {[%clk
0:02:47.3]} 7. Bxd2 {[%clk 0:02:37.2]} 7... Bb7 {[%clk 0:02:46.8]} 8. e3 {[%clk
0:02:35.7]} 8... Nc6 {[%clk 0:02:45.8]} 9. Bd3 {[%clk 0:02:31.2]} 9... Nc5
{[%clk 0:02:43.7]} 10. Bc2 {[%clk 0:02:30]} 10... Qe7 {[%clk 0:02:39.9]} 11. Bc3
{[%clk 0:02:21.9]} 11... Rg8 {[%clk 0:02:30.7]} 12. O-O {[%clk 0:02:19.1]} 12...
g5 {[%clk 0:02:30.5]} 13. b4 {[%clk 0:02:17.1]} 13... Ne6 {[%clk 0:02:26.8]} 14.
Nd4 {[%clk 0:02:15.4]} 14... Nxe5 {[%clk 0:02:14.8]} 15. Nf5 {[%clk 0:02:04.2]}
15... Qf6 {[%clk 0:02:12.6]} 16. Ra2 {[%clk 0:01:14.8]} 16... O-O-O {[%clk
0:02:00.7]} 17. a4 {[%clk 0:00:42.8]} 17... Kb8 {[%clk 0:01:56.5]} 18. a5 {[%clk
0:00:42.4]} 18... Nf3+ {[%clk 0:01:53]} 19. gxf3 {[%clk 0:00:38.4]} 19... Qxc3
{[%clk 0:01:53.2]} 20. axb6 {[%clk 0:00:32.6]} 20... axb6 {[%clk 0:01:51.1]} 21.
Nd4 {[%clk 0:00:19.1]} 21... g4 {[%clk 0:01:44.3]} 22. f4 {[%clk 0:00:18.6]}
22... Qxc4 {[%clk 0:01:31.4]} 23. Bb3 {[%clk 0:00:15.3]} 23... Qxb4 {[%clk
0:01:22.8]} 24. Qa1 {[%clk 0:00:14.2]} 24... Nxd4 {[%clk 0:01:16.7]} 0-1

[Event "Early-Titled-Tuesday-Blitz-October-03-2023"]
[Site "Chess.com"]
[Date "2023.10.03"]
[Round "8"]
[White "a-z30"]
[Black "Javylavilla"]
[Result "0-1"]
[WhiteElo "2496"]
[BlackElo "2391"]
[TimeControl "180+1"]
[EndTime "9:27:57 PDT"]
[Termination "Javylavilla won by resignation"]

1. d3 {[%clk 0:03:00.9]} 1... d5 {[%clk 0:02:58.1]} 2. Nf3 {[%clk 0:03:01]} 2...
Nf6 {[%clk 0:02:58.2]} 3. g3 {[%clk 0:03:01.7]} 3... g6 {[%clk 0:02:58.1]} 4.
Bg2 {[%clk 0:03:02.4]} 4... Bg7 {[%clk 0:02:58.7]} 5. O-O {[%clk 0:03:03.1]}
5... O-O {[%clk 0:02:59]} 6. c4 {[%clk 0:03:03.8]} 6... dxc4 {[%clk 0:02:56.9]}
7. dxc4 {[%clk 0:03:03.3]} 7... Nc6 {[%clk 0:02:54.7]} 8. Nc3 {[%clk 0:03:00.3]}
8... Be6 {[%clk 0:02:52.3]} 9. Qa4 {[%clk 0:02:53]} 9... Qc8 {[%clk 0:02:35.2]}
10. Rd1 {[%clk 0:02:46.8]} 10... Bh3 {[%clk 0:02:28.3]} 11. Nd5 {[%clk
0:02:42.6]} 11... Nxd5 {[%clk 0:02:24.4]} 12. cxd5 {[%clk 0:02:41.4]} 12... Bxg2
{[%clk 0:02:22.8]} 13. Kxg2 {[%clk 0:02:42.1]} 13... Ne5 {[%clk 0:02:21.5]} 14.
Nxe5 {[%clk 0:02:10.4]} 14... Bxe5 {[%clk 0:02:22.4]} 15. e4 {[%clk 0:02:10.7]}
15... h5 {[%clk 0:02:12.7]} 16. f4 {[%clk 0:02:10.2]} 16... Bg7 {[%clk
0:02:12.2]} 17. e5 {[%clk 0:02:09.9]} 17... h4 {[%clk 0:02:10.8]} 18. Be3 {[%clk
0:02:02.5]} 18... Qg4 {[%clk 0:02:07.4]} 19. Qe4 {[%clk 0:01:47.8]} 19... Qe2+
{[%clk 0:02:02.5]} 20. Kg1 {[%clk 0:01:33.4]} 20... hxg3 {[%clk 0:01:59.3]} 21.
hxg3 {[%clk 0:01:30.8]} 21... Qxb2 {[%clk 0:01:54.4]} 22. Rac1 {[%clk
0:00:58.9]} 22... Rac8 {[%clk 0:01:52.2]} 23. Rc2 {[%clk 0:00:58.4]} 23... Qb5
{[%clk 0:01:50]} 24. Rdc1 {[%clk 0:00:36]} 24... Rfd8 {[%clk 0:01:44.9]} 25.
Rxc7 {[%clk 0:00:30.1]} 25... Rxc7 {[%clk 0:01:44.9]} 26. Rxc7 {[%clk
0:00:30.3]} 26... Rxd5 {[%clk 0:01:45.6]} 27. Rc8+ {[%clk 0:00:11.5]} 27... Bf8
{[%clk 0:01:44.9]} 28. f5 {[%clk 0:00:08.2]} 28... Rd1+ {[%clk 0:01:43.8]} 29.
Kh2 {[%clk 0:00:07.3]} 29... Qe2+ {[%clk 0:01:42.9]} 30. Qg2 {[%clk 0:00:05.1]}
30... Qxe3 {[%clk 0:01:42.7]} 31. e6 {[%clk 0:00:04.3]} 31... Rd2 {[%clk
0:01:41.8]} 32. exf7+ {[%clk 0:00:03.8]} 32... Kxf7 {[%clk 0:01:40.9]} 33. fxg6+
{[%clk 0:00:04.2]} 33... Kg7 {[%clk 0:01:40.9]} 34. Rxf8 {[%clk 0:00:04.9]} 0-1

[Event "Early-Titled-Tuesday-Blitz-October-03-2023"]
[Site "Chess.com"]
[Date "2023.10.03"]
[Round "8"]
[White "wild3000"]
[Black "MokshAD1603"]
[Result "0-1"]
[WhiteElo "2427"]
[BlackElo "2614"]
[TimeControl "180+1"]
[EndTime "9:27:59 PDT"]
[Termination "MokshAD1603 won by checkmate"]

1. d4 {[%clk 0:02:59.9]} 1... d5 {[%clk 0:02:55.5]} 2. Nf3 {[%clk 0:03:00.8]}
2... Nf6 {[%clk 0:02:54.2]} 3. e3 {[%clk 0:03:00.8]} 3... c5 {[%clk 0:02:52.4]}
4. dxc5 {[%clk 0:02:58.2]} 4... e6 {[%clk 0:02:45.9]} 5. c4 {[%clk 0:02:56.3]}
5... a5 {[%clk 0:02:46.6]} 6. Nc3 {[%clk 0:02:54.3]} 6... Bxc5 {[%clk
0:02:45.5]} 7. Be2 {[%clk 0:02:53.5]} 7... O-O {[%clk 0:02:44.7]} 8. O-O {[%clk
0:02:53.4]} 8... Nc6 {[%clk 0:02:44.3]} 9. b3 {[%clk 0:02:45.5]} 9... d4 {[%clk
0:02:36.7]} 10. Na4 {[%clk 0:02:44.4]} 10... Ba7 {[%clk 0:02:36.3]} 11. exd4
{[%clk 0:02:38.2]} 11... Nxd4 {[%clk 0:02:36]} 12. Nxd4 {[%clk 0:02:38.4]} 12...
Bxd4 {[%clk 0:02:36.1]} 13. Bb2 {[%clk 0:02:38.5]} 13... e5 {[%clk 0:02:34.3]}
14. Qc2 {[%clk 0:02:34.7]} 14... Bd7 {[%clk 0:02:27.7]} 15. Bxd4 {[%clk
0:02:26.6]} 15... exd4 {[%clk 0:02:26.7]} 16. Nc5 {[%clk 0:02:26.5]} 16... Bc6
{[%clk 0:02:26.5]} 17. Bd3 {[%clk 0:02:11.8]} 17... Re8 {[%clk 0:02:21.3]} 18.
Rfe1 {[%clk 0:02:10.1]} 18... Qd6 {[%clk 0:01:55.4]} 19. Na4 {[%clk 0:01:54.1]}
19... Ng4 {[%clk 0:01:47.2]} 20. g3 {[%clk 0:01:43.6]} 20... Qh6 {[%clk
0:01:28.9]} 21. h4 {[%clk 0:01:36.1]} 21... Ne5 {[%clk 0:01:29.5]} 22. Rxe5
{[%clk 0:00:55.3]} 22... Rxe5 {[%clk 0:01:27.3]} 23. Nb2 {[%clk 0:00:46.7]}
23... Rae8 {[%clk 0:01:24.6]} 24. Rf1 {[%clk 0:00:45.3]} 24... Bf3 {[%clk
0:01:17.9]} 25. c5 {[%clk 0:00:42]} 25... Rh5 {[%clk 0:01:14.3]} 26. Qc1 {[%clk
0:00:27.9]} 26... Rxh4 {[%clk 0:01:11.6]} 27. Qxh6 {[%clk 0:00:27.5]} 27... Rxh6
{[%clk 0:01:11.3]} 28. Nc4 {[%clk 0:00:27.7]} 28... Rh1# {[%clk 0:01:10]} 0-1

[Event "Early-Titled-Tuesday-Blitz-October-03-2023"]
[Site "Chess.com"]
[Date "2023.10.03"]
[Round "8"]
[White "Murad_Ibrahimli"]
[Black "djano"]
[Result "1-0"]
[WhiteElo "2908"]
[BlackElo "2670"]
[TimeControl "180+1"]
[EndTime "9:28:00 PDT"]
[Termination "Murad_Ibrahimli won by resignation"]

1. e4 {[%clk 0:03:00.9]} 1... c5 {[%clk 0:03:00.3]} 2. Nf3 {[%clk 0:02:59.3]}
2... Nc6 {[%clk 0:03:00.9]} 3. Bb5 {[%clk 0:02:56.2]} 3... e5 {[%clk 0:03:00.9]}
4. Nc3 {[%clk 0:02:53.4]} 4... Nge7 {[%clk 0:03:00]} 5. Nd5 {[%clk 0:02:51.9]}
5... d6 {[%clk 0:02:54.2]} 6. Bc4 {[%clk 0:02:51.1]} 6... Be6 {[%clk 0:02:38.4]}
7. Ng5 {[%clk 0:02:46.8]} 7... Ng6 {[%clk 0:02:29.4]} 8. d3 {[%clk 0:02:38.6]}
8... Be7 {[%clk 0:02:29.2]} 9. h4 {[%clk 0:02:26.7]} 9... O-O {[%clk 0:02:23.3]}
10. Qh5 {[%clk 0:02:06.1]} 10... h6 {[%clk 0:01:49.1]} 11. Nxe6 {[%clk
0:02:01.9]} 11... fxe6 {[%clk 0:01:49.7]} 12. Qxg6 {[%clk 0:02:02.1]} 12... exd5
{[%clk 0:01:49.8]} 13. Bxd5+ {[%clk 0:02:02.8]} 13... Kh8 {[%clk 0:01:49.7]} 14.
Bxh6 {[%clk 0:02:00.4]} 14... Rg8 {[%clk 0:01:13.4]} 15. Bg5 {[%clk 0:01:39.3]}
15... Qe8 {[%clk 0:01:00.5]} 16. Bf7 {[%clk 0:01:37.4]} 16... Qxf7 {[%clk
0:00:26]} 17. Qxf7 {[%clk 0:01:36]} 17... Rgf8 {[%clk 0:00:26.6]} 18. Qh5+
{[%clk 0:01:35.1]} 18... Kg8 {[%clk 0:00:26.4]} 19. c3 {[%clk 0:01:35.2]} 19...
Rf7 {[%clk 0:00:24.8]} 20. Ke2 {[%clk 0:01:30]} 20... Raf8 {[%clk 0:00:24.6]}
21. Raf1 {[%clk 0:01:30.7]} 21... Nd8 {[%clk 0:00:24.9]} 22. Be3 {[%clk
0:01:28.1]} 22... Ne6 {[%clk 0:00:25.3]} 23. Rh3 {[%clk 0:01:28.4]} 23... Nf4+
{[%clk 0:00:22.9]} 24. Bxf4 {[%clk 0:01:27.2]} 24... exf4 {[%clk 0:00:23.8]} 25.
Rf3 {[%clk 0:01:26.7]} 25... b6 {[%clk 0:00:19.4]} 26. g3 {[%clk 0:01:21.7]}
26... fxg3 {[%clk 0:00:15.5]} 27. Rxf7 {[%clk 0:01:19.4]} 1-0

[Event "Early-Titled-Tuesday-Blitz-October-03-2023"]
[Site "Chess.com"]
[Date "2023.10.03"]
[Round "8"]
[White "MightyGMpretender"]
[Black "DenLaz"]
[Result "0-1"]
[WhiteElo "2817"]
[BlackElo "3063"]
[TimeControl "180+1"]
[EndTime "9:28:04 PDT"]
[Termination "DenLaz won by resignation"]

1. e4 {[%clk 0:02:58.1]} 1... c5 {[%clk 0:03:00]} 2. Nf3 {[%clk 0:02:57.3]} 2...
e6 {[%clk 0:03:00.4]} 3. c3 {[%clk 0:02:54.7]} 3... d5 {[%clk 0:03:00.2]} 4.
exd5 {[%clk 0:02:55.2]} 4... Qxd5 {[%clk 0:03:01.1]} 5. d4 {[%clk 0:02:55.4]}
5... Nf6 {[%clk 0:03:01.3]} 6. Be3 {[%clk 0:02:54.1]} 6... cxd4 {[%clk 0:02:59]}
7. cxd4 {[%clk 0:02:49]} 7... Bb4+ {[%clk 0:02:57.9]} 8. Nc3 {[%clk 0:02:49.6]}
8... Bd7 {[%clk 0:02:57.4]} 9. Be2 {[%clk 0:02:49.4]} 9... Bb5 {[%clk
0:02:51.3]} 10. O-O {[%clk 0:02:45.1]} 10... Bxc3 {[%clk 0:02:49.1]} 11. bxc3
{[%clk 0:02:44.2]} 11... Bxe2 {[%clk 0:02:49.3]} 12. Qxe2 {[%clk 0:02:44.3]}
12... O-O {[%clk 0:02:49.6]} 13. c4 {[%clk 0:02:39.8]} 13... Qh5 {[%clk
0:02:48.8]} 14. a4 {[%clk 0:02:29.3]} 14... Nc6 {[%clk 0:02:48.2]} 15. Rfb1
{[%clk 0:02:24.3]} 15... b6 {[%clk 0:02:42.9]} 16. Rb5 {[%clk 0:02:20.8]} 16...
Qg4 {[%clk 0:02:42.2]} 17. h3 {[%clk 0:02:18.2]} 17... Qe4 {[%clk 0:02:40.5]}
18. Qb2 {[%clk 0:01:54]} 18... Rac8 {[%clk 0:02:27.5]} 19. Nd2 {[%clk
0:01:46.5]} 19... Qd3 {[%clk 0:02:22.1]} 20. Rg5 {[%clk 0:01:35.6]} 20... h6
{[%clk 0:02:08]} 21. Rg3 {[%clk 0:01:31]} 21... Nh5 {[%clk 0:02:07.1]} 22. Rf3
{[%clk 0:01:25.4]} 22... Qg6 {[%clk 0:02:01.4]} 23. Qb5 {[%clk 0:01:11.9]} 23...
f5 {[%clk 0:01:56.3]} 24. Nb3 {[%clk 0:01:00.8]} 24... Kh7 {[%clk 0:01:46.8]}
25. Re1 {[%clk 0:00:58.1]} 25... Rfd8 {[%clk 0:01:36.4]} 26. a5 {[%clk
0:00:49.6]} 26... bxa5 {[%clk 0:01:31.1]} 27. c5 {[%clk 0:00:39.2]} 27... e5
{[%clk 0:01:24.9]} 28. Nxa5 {[%clk 0:00:29.6]} 28... e4 {[%clk 0:01:08.7]} 29.
Nxc6 {[%clk 0:00:27]} 29... exf3 {[%clk 0:01:07.9]} 0-1